Cogmind - Beta 15 @@@ ROGUE MODE // 2025.08.22 @ 03:43:32 // Winter2019/RPGLIKE Player: Toaster Result: Self-destructed Performance ------------- Evolutions (5) 2500 Regions Visited (6) 1200 Robots Destroyed (67) 335 Value Destroyed (2305) 2305 Prototype IDs (19) 380 Alien Tech Used (0) 0 Bonus (345) 345 TOTAL SCORE: 7065 Bonus ------- Follower Combat Kills 45 Registered with UFD 300 Cogmind --------- Core Integrity 706/1000 Matter 258/400 Energy 504/510 System Corruption 0% Temperature Cool (8) Movement Hovering (40) Location -5/Factory Parts ------- > --- POWER (2+1) ------ Angular Momentum Engine (+) Fission Core > --- PROPULSION (4+1) - Cooled Aerolev Unit Cooled Aerolev Unit Cooled Aerolev Unit (+) Antigrav System Gyrokinetic Inverter > --- UTILITY (5+1) ---- Improved Signal Interpreter Improved Particle Charger (+) Launcher Loader Long-range Tractor Beam Rainbow Chip > --- WEAPON (3) ------- Smartbomb Launcher > --- INVENTORY (2) ---- Advanced Reaction Control System Cooled Plasma Cannon Peak State ------------ > --- POWER ------------ Angular Momentum Engine Fission Core > --- PROPULSION ------- Cooled Aerolev Unit Cooled Aerolev Unit Cooled Aerolev Unit Antigrav System Gyrokinetic Inverter > --- UTILITY ---------- Improved Signal Interpreter Improved Particle Charger Launcher Loader Long-range Tractor Beam Rainbow Chip > --- WEAPON ----------- Smartbomb Launcher > --- INVENTORY -------- Advanced Reaction Control System Cooled Plasma Cannon [Rating: 90] Favorites ----------- Power Ion Engine Engine Ion Engine Power Core Fission Core Propulsion Aluminum Leg Leg Aluminum Leg Hover Unit Cooled Aerolev Unit Utility Rainbow Chip Device Improved Particle Charger Processor Rainbow Chip Protection Makeshift Light Armor Plating Weapon Particle Cannon Energy Cannon Particle Cannon Ballistic Gun Assault Rifle Ballistic Cannon Battle Cannon Launcher Proton Missile Launcher Special Weapon Mining Laser Build | -11 -10 -10 -9 -9 -6 -5 ------- Run | Yrd Mat Sub Rec Scr Fac Fac Slots Evolved 10 | 2 2 . . . 3 3 Power 1 | . . . . . . 1 Propulsion 3 | 1 . . . . 1 1 Utility 4 | . 1 . . . 2 1 Weapon 2 | 1 1 . . . . . Parts Attached 51 | 5 10 6 5 3 15 7 Power 5 | 1 1 . . 1 2 . Engine 4 | 1 1 . . 1 1 . Core 1 | . . . . . 1 . Reactor . | . . . . . . . Propulsion 12 | 2 1 . 2 . 4 3 Treads . | . . . . . . . Leg 5 | 2 1 . 2 . . . Wheel . | . . . . . . . Hover 7 | . . . . . 4 3 Flight . | . . . . . . . Utility 16 | . 5 2 . 2 4 3 Device 8 | . 2 . . 1 2 3 Storage . | . . . . . . . Processor 3 | . . 1 . . 2 . Hackware . | . . . . . . . Protection 5 | . 3 1 . 1 . . Artifact . | . . . . . . . Weapon 18 | 2 3 4 3 . 5 1 Energy Gun . | . . . . . . . Energy Cannon 8 | . 3 . 3 . 2 . Ballistic Gun 2 | 2 . . . . . . Ballistic Cannon 3 | . . 3 . . . . Launcher 4 | . . . . . 3 1 Special Weapon 1 | . . 1 . . . . Impact Weapon . | . . . . . . . Slashing Weapon . | . . . . . . . Piercing Weapon . | . . . . . . . Special Melee Weapon . | . . . . . . . Unidentified Prototypes 2 | . . . . . 2 . Parts Lost . | . . . . . . . Power . | . . . . . . . Propulsion . | . . . . . . . Utility . | . . . . . . . Weapon . | . . . . . . . Highest Loss Streak . | . . . . . . . To Critical Strikes . | . . . . . . . Average Backups . | . . 1 . 1 1 1 Power . | . . . . . . . Propulsion . | . . . . . . . Utility . | . . . . . . . Weapon . | . . 1 . 1 . 1 Tool/Special . | . . . . . . . Unused Backups 2 | . 1 . . . 1 . Power . | . . . . . . . Propulsion . | . . . . . . . Utility . | . . . . . . . Weapon 2 | . 1 . . . 1 . Tool/Special . | . . . . . . . Average Slot Usage (%) 77 | . 99 71 66 72 82 93 Engine 9 | . 15 8 8 7 7 5 Leg 17 | . 31 17 16 16 7 . Hover 3 | . . . . . 15 31 Device 5 | . 11 . . 5 11 19 Processor 6 | . . 6 8 8 8 12 Protection 7 | . 7 10 8 8 5 . Energy Cannon 20 | . 28 17 20 25 20 2 Ballistic Cannon 3 | . . 9 4 . . . Peak Build Rating 90 | 5 10 26 26 31 76 90 Average Rating 27 | 4 7 22 25 29 49 85 On Entrance 24 | . 5 8 26 26 31 76 Naked Turns . | . . . . . . . Heaviest Build 53 | 6 20 21 21 31 51 53 Greatest Support 74 | 20 20 25 25 25 51 74 Greatest Overweight (x) 2 | . . . 1 1 2 . Average Overweight (x) . | . . . . . . . Largest Inventory Capacity 2 | 1 1 1 1 1 2 2 Average Capacity 1 | . 1 1 1 1 1 2 Most Carried 2 | . 1 1 1 1 2 2 Average Carried . | . . . . 1 1 1 Final Capacity 2 | 1 1 1 1 1 2 2 Final Carried 2 | . 1 1 1 1 1 2 Class Distribution -------------------- 60% | Gunner 15% | Mutant 13% | Derelict-Gunner 5% | Tank 5% | Scout Dominant Class ---------------- Mutant | -10/Materials Gunner | -10/Subcaves Gunner | -9/Recycling Gunner | -9/Scraptown Gunner | -6/Factory Scout | -5/Factory Resources | -11 -10 -10 -9 -9 -6 -5 ----------- Run | Yrd Mat Sub Rec Scr Fac Fac Matter Collected 1768 | 250 141 775 64 46 225 267 Remotely 146 | . . . . . . 146 Salvage Created 2583 | . 422 899 542 . 304 416 Parts 142 | . 29 54 26 . 16 17 Haulers Intercepted 1 | . . . . . 1 . Recyclers Shooed . | . . . . . . . Parts Field Recycled . | . . . . . . . Retrieved Matter . | . . . . . . . Parts Self-Destructed 17 | . . 17 . . . . Prevented . | . . . . . . . Kills | -11 -10 -10 -9 -9 -6 -5 ------- Run | Yrd Mat Sub Rec Scr Fac Fac Combat Hostiles Destroyed 57 | . 14 23 6 . 6 8 Cannons 43 | . 13 22 6 . 2 . AOE 11 | . . . . . 4 7 Classes Destroyed 12 | . 5 3 2 . 2 . Worker 1 | . 1 . . . . . Hauler 1 | . . . . . 1 . Mechanic 1 | . 1 . . . . . Turret 2 | . . 2 . . . . Watcher 5 | . 3 . . . 1 1 Swarmer 18 | . 3 7 . . 4 4 Grunt 12 | . 11 . 1 . . . Protector 1 | . . . 1 . . . Sentry 9 | . . . 4 . 1 4 Programmer 1 | . . . . . 1 . Artisan 3 | . . 3 . . . . Subdweller 16 | . . 16 . . . . Best Kill Streak 5 | . 4 4 2 . 4 5 Combat Bots Only 5 | . 3 4 2 . 4 5 Max Kills in Single Turn 2 | . 1 1 1 . 2 1 Gunslinging . | . . . . . . . Exploded 2 | . . . . . 2 1 Melee . | . . . . . . . Uniques/NPCs Destroyed . | . . . . . . . Combat | -11 -10 -10 -9 -9 -6 -5 -------- Run | Yrd Mat Sub Rec Scr Fac Fac Hostile Shots Fired 213 | . 35 125 11 . 29 13 Missed 87 | . 14 52 5 . 12 4 Hits 126 | . 21 73 6 . 17 9 Projectile 126 | . 21 73 6 . 17 9 AOE 7 | . . 7 . . . . Critical Strikes 2 | . 1 . . . . 1 Damage Taken 2053 | . 272 1218 84 . 226 253 Core 1596 | . 220 928 74 . 168 206 Absorbed by Shields . | . . . . . . . Redirected to Core 1130 | . 178 610 38 . 141 163 Core Remaining (%) 89 | 100 . . . 77 91 . Volleys Fired 189 | . 37 103 21 . 12 16 Largest 3 | . 3 3 3 . 3 3 Hottest 204 | . 180 180 204 . 204 117 Shots Fired 422 | . 75 253 46 . 24 24 Gun 4 | . 4 . . . . . Cannon 370 | . 71 232 46 . 19 2 Launcher 27 | . . . . . 5 22 Special 21 | . . 21 . . . . Kinetic 137 | . 4 133 . . . . Thermal 258 | . 71 120 46 . 19 2 Explosive 9 | . . . . . . 9 Electromagnetic 18 | . . . . . 5 13 Robot Hit Streak 45 | . 8 25 37 . 45 25 Robot Miss Streak 5 | . 3 5 . . 2 . Penetration Max . | . . . . . . . Secondary Targets . | . . . . . . . Shots Hit Robots 264 | . 47 144 35 . 15 23 Core Hits 112 | . 21 48 13 . 11 19 Critical Kills 3 | . 1 1 . . 1 . Critical Parts Destroyed . | . . . . . . . Critical Strikes 8 | . 1 6 . . 1 . Meltdown 3 | . 1 1 . . 1 . Blast 5 | . . 5 . . . . Melee Attacks . | . . . . . . . Impact . | . . . . . . . Slashing . | . . . . . . . Piercing . | . . . . . . . Sneak Attacks . | . . . . . . . Combat Hostiles . | . . . . . . . Follow-up Attacks . | . . . . . . . Damage Inflicted 5881 | . 892 2653 758 . 626 952 Guns 31 | . 31 . . . . . Cannons 4711 | . 844 2653 754 . 385 75 Explosions 1118 | . . . . . 241 877 Melee . | . . . . . . . Ramming 21 | . 17 . 4 . . . Kinetic 1597 | . 31 1566 . . . . Thermal 3161 | . 844 1087 754 . 401 75 Explosive 599 | . . . . . . 599 Electromagnetic 503 | . . . . . 225 278 Impact . | . . . . . . . Slashing . | . . . . . . . Piercing . | . . . . . . . Highest Corruption 1 | . . . 1 . . . Average Corruption 1 | . . . 1 . . . Corruption Purged . | . . . . . . . Corruption Blocked . | . . . . . . . Effects 10 | . . . 10 . . . Message Errors 2 | . . . 2 . . . Matter Fused 4 | . . . 4 . . . Heat Flow Errors 1 | . . . 1 . . . Data Loss (minor) 1 | . . . 1 . . . Data Loss (major) 1 | . . . 1 . . . Misfires 1 | . . . 1 . . . Overload Shots . | . . . . . . . Overflow Damage 130 | . 15 11 22 . 30 52 Projectiles 89 | . 15 11 22 . 16 25 Explosions 41 | . . . . . 14 27 Melee . | . . . . . . . Knockbacks 14 | . . 14 . . . . Impact . | . . . . . . . Kinetic 14 | . . 14 . . . . Secondary . | . . . . . . . Self-Inflicted Damage 8 | . . . . . 2 6 Shots 2 | . . . . . 1 1 Rammed . | . . . . . . . Targets Rammed 8 | . 5 . 3 . . . Kicked 8 | . 5 . 3 . . . Crushed . | . . . . . . . Highest Temperature 272 | . 250 1 272 . 232 122 Average Temperature 66 | . 60 1 81 . 93 48 Received Heat Transfer 486 | . 168 270 30 . 18 . Siege Activations . | . . . . . . . Martial Activations . | . . . . . . . Shielding Activations . | . . . . . . . Robots Disrupted . | . . . . . . . Combat Hostiles . | . . . . . . . Robots Corrupted 1 | . . . . . . 1 Combat Hostiles 1 | . . . . . . 1 Parts Fried 2 | . . . . . . 2 Impact Corruptions . | . . . . . . . Robots Melted 3 | . 1 1 . . 1 . Combat Hostiles 2 | . 1 1 . . . . Parts Melted 12 | . 5 6 . . 1 . Heat Transferred 6112 | . 1776 2294 1361 . 581 100 Parts Sabotaged . | . . . . . . . Parts Stolen . | . . . . . . . Parts Stripped . | . . . . . . . Power Chain Reactions 1 | . . . . . 1 . Alert | -11 -10 -10 -9 -9 -6 -5 ------- Run | Yrd Mat Sub Rec Scr Fac Fac Maximum Alert Level 1 | . . . . . 1 1 Low Security (%) 95 | 100 100 . 100 . 81 91 Level 1 4 | . . . . . 18 8 Level 2 . | . . . . . . . Level 3 . | . . . . . . . Level 4 . | . . . . . . . Level 5 . | . . . . . . . High Security . | . . . . . . . Max Security . | . . . . . . . Peak Influence 334 | . 176 . 75 . 334 300 Initial 146 | . . . 75 . . 146 Average 54 | . 76 . 10 . 55 156 Influence Increases 1805 | . 480 280 267 . 426 352 Destroy 0b10 Robot/C 860 | . 280 180 100 . 140 160 Destroy 0b10 Robot/NC 75 | . 25 . 35 . 10 5 Destroy Leader 192 | . 86 10 . . 44 52 Allied During Kill 6 | . . . . . 6 . Successful Hack 39 | . 13 . 12 . 14 . Select Force Hacks 150 | . 30 . 120 . . . Disable Machine 60 | . 15 . . . 45 . Anti-Garrison Action 150 | . . . . . 150 . Destroy Structure 78 | . 1 . . . 17 60 Partial Spotted 30 | . . . . . . 30 Lose Combat Pursuer 165 | . 30 90 . . . 45 Influence Decreases 1513 | . 362 240 425 . 127 359 Entered New Map 294 | . . 58 83 . . 153 Time Decay 1218 | . 362 182 342 . 126 206 Lost Ally 1 | . . . . . 1 . Squads Dispatched 9 | . 4 . . . 4 1 Investigation 2 | . 2 . . . . . Extermination 3 | . . . . . 2 1 Reinforcement 2 | . 2 . . . . . Assault 2 | . . . . . 2 . Garrison . | . . . . . . . Intercept . | . . . . . . . Searches Triggered . | . . . . . . . Construction Impeded . | . . . . . . . Haulers Reinforced . | . . . . . . . Active Scanning Responses . | . . . . . . . Cargo Convoy Interrupts . | . . . . . . . Stealth | -11 -10 -10 -9 -9 -6 -5 --------- Run | Yrd Mat Sub Rec Scr Fac Fac Distress Signals 2 | . . . . . . 2 Communications Jammed . | . . . . . . . Distress Signals . | . . . . . . . Times Spotted 84 | . 24 37 4 . 9 10 Peak Tracking Total 6 | . 4 6 2 . 5 5 Tactical Retreats 8 | . 1 5 . . . 2 Traps | -11 -10 -10 -9 -9 -6 -5 ------- Run | Yrd Mat Sub Rec Scr Fac Fac Traps Triggered 3 | . 1 1 . . 1 . Indirectly 1 | . . . . . 1 . Trap Hack Attempts . | . . . . . . . Triggered . | . . . . . . . Disarmed . | . . . . . . . Reprogrammed . | . . . . . . . Reused . | . . . . . . . Traps Extracted . | . . . . . . . Installed . | . . . . . . . Triggered . | . . . . . . . Machines | -11 -10 -10 -9 -9 -6 -5 ---------- Run | Yrd Mat Sub Rec Scr Fac Fac Machines Disabled 8 | . 1 3 . . 4 . Max in Single Turn 1 | . 1 1 . . 1 . Garrison Access 1 | . . . . . 1 . Machines Repaired . | . . . . . . . Machines Dismantled . | . . . . . . . Machines Sabotaged . | . . . . . . . Overloaded Fab Kills . | . . . . . . . Hacking | -11 -10 -10 -9 -9 -6 -5 --------- Run | Yrd Mat Sub Rec Scr Fac Fac Machines Accessed 23 | . 7 2 10 . 3 1 Terminals 16 | . 6 . 6 . 3 1 Fabricators . | . . . . . . . Repair Stations . | . . . . . . . Recycling Units 5 | . 1 . 4 . . . Scanalyzers . | . . . . . . . Garrison Access . | . . . . . . . Total Hacks 45 | . 16 6 16 . 5 2 Successful 28 | . 7 6 12 . 2 1 Failed 17 | . 9 . 4 . 3 1 Catastrophic 2 | . . . 1 . 1 . Database Lockouts . | . . . . . . . Manual 32 | . 14 . 13 . 3 2 Terminals 31 | . 15 . 9 . 5 2 Fabricators . | . . . . . . . Repair Stations . | . . . . . . . Recycling Units 8 | . 1 . 7 . . . Scanalyzers . | . . . . . . . Garrison Access . | . . . . . . . Terminal Hacks 9 | . 2 6 . . 1 . Record 5 | . . 5 . . . . Locate Traps 2 | . 2 . . . . . Recall Investigation 1 | . . . . . 1 . Proto ID Catalog 1 | . . 1 . . . . Fabricator Hacks . | . . . . . . . Repair Station Hacks . | . . . . . . . Recycling Unit Hacks 3 | . . . 3 . . . Report Inventory 3 | . . . 3 . . . Scanalyzer . | . . . . . . . Garrison Access Hacks . | . . . . . . . Unauthorized Hacks 16 | . 5 . 9 . 1 1 Terminals 11 | . 4 . 5 . 1 1 Botnet 11 | . 4 . 5 . 1 1 Fabricators . | . . . . . . . Repair Stations . | . . . . . . . Recycling Units 5 | . 1 . 4 . . . Tunnel 5 | . 1 . 4 . . . Scanalyzers . | . . . . . . . Garrison Access . | . . . . . . . Data Cores Recovered . | . . . . . . . Used . | . . . . . . . Hacking Detections 12 | . 4 . 4 . 3 1 Full Trace Events 3 | . 2 . 1 . . . Feedback Events 1 | . . . 1 . . . Corruption 1 | . . . 1 . . . Feedback Blocked . | . . . . . . . Robot Schematics Acquired . | . . . . . . . Robots Built . | . . . . . . . Authchips . | . . . . . . . Time . | . . . . . . . Total Robot Build Rating . | . . . . . . . Part Schematics Acquired . | . . . . . . . Parts Built . | . . . . . . . Authchips . | . . . . . . . Time . | . . . . . . . Total Part Build Rating . | . . . . . . . Parts Repaired . | . . . . . . . Time . | . . . . . . . Parts Recycled . | . . . . . . . Recycled Matter . | . . . . . . . Retrieved Matter . | . . . . . . . Retrieved Components . | . . . . . . . Parts Scanalyzed . | . . . . . . . Part Schematics Acquired . | . . . . . . . Parts Damaged . | . . . . . . . Bothacking | -11 -10 -10 -9 -9 -6 -5 ------------ Run | Yrd Mat Sub Rec Scr Fac Fac Used RIF Installer . | . . . . . . . Robots Hacked . | . . . . . . . Non-combat . | . . . . . . . Combat . | . . . . . . . Robot Hacks Applied . | . . . . . . . Relay Couplers Released . | . . . . . . . Fabnet Peak Effective % . | . . . . . . . Robots Rewired 2 | . . . 2 . . . Allies Hacked . | . . . . . . . Hacks Repelled . | . . . . . . . Allies | -11 -10 -10 -9 -9 -6 -5 -------- Run | Yrd Mat Sub Rec Scr Fac Fac Total Allies 2 | . . . 2 . . . Largest Group 2 | . . . 2 2 2 . Highest-Rated Group 42 | . . . 42 42 42 . Highest-Rated Ally 21 | . . . 21 21 21 . Total Orders 4 | . . . 2 . 2 . STAY 2 | . . . 1 . 1 . FOLLOW 2 | . . . 1 . 1 . Ally Attacks 9 | . . . . . 9 . Total Damage 393 | . . . . . 393 . Kills 2 | . . . . . 2 . Allies Corrupted . | . . . . . . . Allies Melted . | . . . . . . . Intel | -11 -10 -10 -9 -9 -6 -5 ------- Run | Yrd Mat Sub Rec Scr Fac Fac Active Infowar (turns) . | . . . . . . . Robot Analysis Total . | . . . . . . . Derelict Logs Recovered 2 | . . 2 . . . . Drone Launches . | . . . . . . . Drone Recoveries . | . . . . . . . Exploration | -11 -10 -10 -9 -9 -6 -5 ------------- Run | Yrd Mat Sub Rec Scr Fac Fac Turns Passed 10121 | 67 1757 2980 1775 2041 1078 423 Spaces Moved 8092 | 59 1248 2099 1379 1247 1159 901 Core 15 | 15 . . . . . . Treads . | . . . . . . . Legs 6264 | 44 1248 2099 1379 1247 247 . Wheels . | . . . . . . . Hover 1813 | . . . . . 912 901 Flight . | . . . . . . . Fastest Speed 24 | 50 120 120 120 120 38 24 Average Speed 110 | 102 120 120 120 163 70 38 Slowest Speed 260 | 120 120 120 190 190 260 45 Overloaded Moves 1 | . . . . . . 1 Propulsion Burnouts . | . . . . . . . Robots Hopped . | . . . . . . . Potential Cave-ins . | . . . . . . . Cave-ins Triggered . | . . . . . . . Exploration Rate (%) 58 | 4 98 85 99 84 22 20 Regions Visited 6 Branch Regions 3 Pre-discovered Areas 7 | . 1 2 4 . . . Known Exits Taken 1 | . . . . . 1 . Unknown Exits Taken 5 | 1 1 1 1 1 . . Scrap Searched 23 | . . 18 . 5 . . Spaces Dug . | . . . . . . . Terrain Destroyed 37 | . . . . . . 37 Melee . | . . . . . . . Projectile . | . . . . . . . AOE 37 | . . . . . . 37 Terrain Rammed . | . . . . . . . Walls Destroyed . | . . . . . . . Machines Disabled . | . . . . . . . Actions | -11 -10 -10 -9 -9 -6 -5 --------- Run | Yrd Mat Sub Rec Scr Fac Fac Total 8884 | 63 1434 2318 1463 1251 1396 959 Wait 381 | . 94 83 8 . 176 20 Move 8086 | 58 1247 2098 1378 1246 1158 901 Hop . | . . . . . . . Pick Up 10 | . 4 1 1 . 4 . Fast Attach 47 | 5 9 5 5 3 13 7 Attach 6 | . 2 1 . . 3 . Detach 12 | . 3 . 2 . 3 4 Swap 15 | . 3 5 . . 3 4 Drop 41 | . 9 6 6 2 11 7 Fire 189 | . 37 103 21 . 12 16 Melee . | . . . . . . . Ram . | . . . . . . . Kick 8 | . 5 . 3 . . . Crush . | . . . . . . . Escape Stasis . | . . . . . . . Rewire 18 | . . . 18 . . . Trap . | . . . . . . . Miscellaneous 71 | . 21 16 21 . 13 . Route ------- -11/Scrapyard -10/Materials (discovered 6 exits: [*Mat x3] / [*Min x2] / *Sub) -10/Subcaves (discovered 3 exits: [*Mat x2] / *Rec) -9/Recycling (discovered 2 exits: [*Fac] / [*Scr]) -9/Scraptown (discovered 2 exits: *Fac x2) -6/Factory (discovered 2 exits: *Fac / [*Low]) -5/Factory (discovered 2 exits: *Fac x2) History --------- Turn | Location | Event 6 | -11/Scrapyard | Upgraded with Propulsion slot (x1) 6 | -11/Scrapyard | Upgraded with Weapon slot (x1) 24 | -11/Scrapyard | Discovered new exit (range 15) 68 | -11/Scrapyard | Entered Materials 189 | -10/Materials | Discovered new exit (range 13) 274 | -10/Materials | Discovered new exit (range 11) 309 | -10/Materials | Build established: Mutant 557 | -10/Materials | Discovered new exit (range 15) 703 | -10/Materials | Discovered new exit (range 9) 816 | -10/Materials | Discovered new exit (range 9) 1200 | -10/Materials | Reached level 2 1313 | -10/Materials | Upgraded with Utility slot (x1) 1371 | -10/Materials | Discovered new exit (range 7) 1611 | -10/Materials | Upgraded with Weapon slot (x1) 1825 | -10/Materials | Entered Subcaves 1826 | -10/Subcaves | Approached by a straggling Scientist 1827 | -10/Subcaves | Reached level 3 2009 | -10/Subcaves | Shifting Twisted Machinery released Sub. Power Source 2018 | -10/Subcaves | Build established: Tank 2023 | -10/Subcaves | Shifting Twisted Machinery released Mak. Light Armor Plating 2243 | -10/Subcaves | Visited 4L-MR0's lab 2262 | -10/Subcaves | Found Rainbow Chip 2264 | -10/Subcaves | Attached Rainbow Chip, gained temporary slots: Power, Propulsion, Utility, Weapon 2368 | -10/Subcaves | Discovered new exit (range 8) 2464 | -10/Subcaves | Discovered new exit (range 7) 2557 | -10/Subcaves | Build established: Gunner 2788 | -10/Subcaves | Disturbed a concealed Subdweller 2876 | -10/Subcaves | Visited Clippyterm 2879 | -10/Subcaves | Learned Factory stockpile data 2879 | -10/Subcaves | Learned location of Deep Caves (-6) 3332 | -10/Subcaves | Shifting Twisted Machinery released Flamer 3588 | -10/Subcaves | A swath of the cavern ceiling suddenly collapsed 4064 | -10/Subcaves | Build established: Derelict-Gunner 4072 | -10/Subcaves | Ambushed by Subdwellers from Twisted Machinery 4075 | -10/Subcaves | Ambushed by Subdweller buried in earth 4099 | -10/Subcaves | Core integrity fell below 50% 4199 | -10/Subcaves | Discovered new exit (range 14) 4726 | -10/Subcaves | Shifting Twisted Machinery released Flamer 4805 | -10/Subcaves | Entered Recycling 4807 | -9/Recycling | Reached level 4 5436 | -9/Recycling | Build established: Gunner 5937 | -9/Recycling | Discovered new exit (range 16) 6049 | -9/Recycling | Reached level 5 6544 | -9/Recycling | Scanned before Scraplab entrance 6562 | -9/Recycling | Entered Scraplab 6572 | -9/Recycling | Discovered new exit (range 4) 6580 | -9/Recycling | Entered Scraptown 6580 | -9/Scraptown | Accompanied by 2 allies 6580 | -9/Scraptown | System corruption cleaned by C-Scrubber 6878 | -9/Scraptown | Discovered new exit (range 11) 7014 | -9/Scraptown | Visited The Evicted 7037 | -9/Scraptown | Visited SPCMW 7342 | -9/Scraptown | Visited Symbiants 7458 | -9/Scraptown | Visited Cyclists 7498 | -9/Scraptown | Visited Comm Corps 7678 | -9/Scraptown | Visited Assassins FH 7707 | -9/Scraptown | Visited UFD Registry 7707 | -9/Scraptown | Registered with UFD as "Toolslasher" 7785 | -9/Scraptown | Visited Cartography Club 7827 | -9/Scraptown | Visited Abandonware Association 7861 | -9/Scraptown | Visited Infowarlord's Domain 7903 | -9/Scraptown | Visited Scrapoid Research Area 7929 | -9/Scraptown | Visited Research Penetration Think Tank 8028 | -9/Scraptown | Visited Curators Association 8260 | -9/Scraptown | Visited Scrapoid Pod Storage 8321 | -9/Scraptown | Visited Science Guys 8488 | -9/Scraptown | Discovered new exit (range 3) 8621 | -9/Scraptown | Entered Factory 8621 | -6/Factory | Accompanied by 2 allies 8623 | -6/Factory | Reached level 6 8978 | -6/Factory | Discovered new exit (range 13) 9132 | -6/Factory | Upgraded with Propulsion slot (x1) 9502 | -6/Factory | Reached level 7 9515 | -6/Factory | Upgraded with Utility slot (x1) 9536 | -6/Factory | Discovered new exit (range 8) 9586 | -6/Factory | Upgraded with Utility slot (x1) 9657 | -6/Factory | Identified exit to Factory 9699 | -6/Factory | Entered another Factory area 9701 | -5/Factory | Reached level 8 9705 | -5/Factory | Upgraded with Propulsion slot (x1) 9866 | -5/Factory | Discovered new exit (range 10) 9900 | -5/Factory | Build established: Scout 9901 | -5/Factory | Identified exit to Factory 9943 | -5/Factory | Reached level 9 9965 | -5/Factory | Upgraded with Power slot (x1) 10042 | -5/Factory | Upgraded with Utility slot (x1) 10042 | -5/Factory | Found Launcher Loader 10081 | -5/Factory | Discovered exit to Factory (range 17) 10122 | -5/Factory | Self-destructed Last Messages --------------- 10030_ Dropped Proton Missile Launcher. 10042_ Upgraded: Utility Slot (+1) 10042_ Acquired Launcher Loader. 10081_ EXIT=FOUND: FACTORY 10082_ Penetrated by Slug. 10085_ Destroyed VTOL Module. 10085_ S-27 Virus destroyed. 10086_ Destroyed Lgt. Nuclear Core. 10086_ S-27 Virus destroyed. 10087_ Acquired 11 matter. 10087_ S-27 Virus destroyed. 10090_ Acquired 5 matter. 10091_ The unstable cave ceiling collapses. 10091_ Y-64 Sentinel destroyed. 10092_ U-05 Engineer lays Concrete. 10098_ W-25 Informer sends out distress signal. 10099_ Knocked back. 10099_ U-05 Engineer lays Concrete. 10099_ Acquired 1 matter. 10099_ U-05 Engineer lays Concrete. Map ----- +----------------------------------------------------+ | | | | | | | | | | | | | | | | | | | | | | | | | | | ???????????????????????????????????????????? | | ???????????????????????????????????????????? | | ????????????????????????????????????????#### | | ????????????????????????????????????????# | | ????????????????????????????????????????# | | ????????????????????????????????????????# | | ????????????????????????????????????????# | | ?????????##############?????????????????#! | | ?????????# ! #?????????????????# | | ?????????# ! #?????????????????# "" | | ?????????# ! #?????????????????#""" | | ?????????# #?????????????????#"T | | ?????????# @ #?????????????????#""" | | ?????????# #?????????????????# "" | | ?????????# #?????????????????# | | ?????????# #?????????????????#### | | ?????????# #????????????????????# | | ?????????# #????????????????????# | | ?????????# #????????????????????# | | ?????????# #?????????????????#### | | ???????#########+########################T # | | ???????# | | ???????# | | ???????#/! """ t | | ########/! """ | | # # """ ^ | | # # ############################ | | # # """ #???????# ?????????????# | | # # """ ###?????#| ????????????# | | # # """ ####### """ "???????????# | | # # + """ """?????????# | | # + ####### """ """?????????# | | # # ##### ## ????????????# | | # # ## ##+############### | | # # ## | | # # | | # # | +----------------------------------------------------+ Best States ------------- Heat Dissipation 69 Coolant Potential 65 Energy Generation 31 Energy Capacity 510 Matter Stores 400 Matter Capacity 400 Sight Range 18 Robot Scan Range 16 Terrain Scan Density 10 Armor Coverage 300 Weapon Shielding 33 Evasion (%) 69 Particle Charging 20 Item Schematics ----------------- None Robot Schematics ------------------ None Fabricated ------------ Nothing Repaired ---------- Nothing Alien Tech Used ----------------- None Achievements -------------- None Challenges ------------ None RPGLIKE | -11 -10 -10 -9 -9 -6 -5 --------- Run | Yrd Mat Sub Rec Scr Fac Fac Levels Raised 8 | . 1 1 2 . 2 2 XP Earned 15742 | 3000 2025 1950 2100 650 3467 2550 XP Spent 14905 | 2750 1750 580 . . 6825 3000 Upgrades 43 | 6 7 9 . . 18 3 Power Slot 1 | . . . . . . 1 Propulsion Slot 3 | 1 . . . . 1 1 Utility Slot 4 | . 1 . . . 2 1 Weapon Slot 2 | 1 1 . . . . . Core Integrity 8 | . . 8 . . . . Heat Dissipation 5 | . 5 . . . . . Matter Storage 2 | . . . . . 2 . Mass Support 3 | . . 1 . . 2 . Inventory Capacity 2 | 1 . . . . 1 . Sight Range 2 | . . . . . 2 . Sensor Range 8 | . . . . . 8 . Ranged Accuracy 3 | 3 . . . . . . Protomatter Created 627 | . 266 108 152 . 101 . Integrity Restored 1415 | . 333 324 456 . 302 . Core 1302 | . 220 324 456 . 302 . Parts 113 | . 113 . . . . . Protomatter Decayed 284 | . 133 130 . . 21 . Game ------ Seed SeismicPlexusBooster Manual? 0 Play Time 01:37:01 Cumulative 125.6 hours Start 2025.08.19 @ 02:46:46 End 2025.08.22 @ 03:43:32 Sessions 3 Manual Loads 0 Difficulty Rogue Special Mode Winter2019/RPGLIKE Game No. 57 Rogue 53 Adventurer 4 Explorer 0 Win Type - Total 1 Types 1/0/0/0/0/0/0/0/0/0 Lore% 58 Gallery% 47 Achievement% 50 Wizard Run 0 Options --------- Layout 0 ASCII 0 Keyboard 0 Movement Arrows Keybinds 0 Fullscreen 2 Font 32/SmallcapsGlow Map View 88x55 Zoom Use 0% Tactical HUD 1 Map Filters NONE Filters NONE Steam 1 RUN: a2cdc90f-df64-4f6a-8968-35a85ca4f574